fUST/lending_fUST_20240416
["ID","MTS","AMOUNT","RATE_DAILY","PERIOD"]
[322762088,1713258638298,-563.75505077,0.00029992,2]
[322762089,1713258638307,-3159.28029571,0.0003,2]
[322762090,1713258638317,-192.83809582,0.000309,2]
[322762091,1713258638326,-2000.0,0.000309,2]
[322762092,1713258638337,-1961.42799673,0.00031,2]
[322762093,1713258638346,-71216.55703049,0.00031,2]
[322762094,1713258638355,-10629.16568609,0.00031,5]
[322762095,1713258638365,-1000.0,0.00031,31]
[322762096,1713258638374,-3623.16088213,0.00031,2]
[322762097,1713258638384,-306.0,0.00031233,2]
[322762098,1713258638393,-420.0,0.00031317,2]
[322762099,1713258638402,-192.8380958,0.000314,2]
[322762100,1713258638411,-153.0,0.00031452,2]
[322762101,1713258638421,-164.34817488,0.00031679,2]
[322762102,1713258638430,-153.0,0.000317,2]
[322762103,1713258638440,-154.75239617,0.0003189,10]
[322762104,1713258638450,-63565.45897815,0.000319,2]
[322762105,1713258638459,-153.0,0.000319,2]
[322762106,1713258638468,-192.8380958,0.000319,2]
[322762107,1713258638478,-641.08434525,0.00031963,2]
[322762108,1713258638488,-179.62404289,0.00031963,4]
[322762109,1713258638497,-155.21079364,0.00031963,4]
[322762110,1713258638506,-155.46784283,0.00031963,4]
[322762111,1713258638515,-743.84753818,0.00031963,4]
[322762112,1713258638524,-891.07165608,0.00031963,4]
[322762113,1713258638533,-1697.52332177,0.00031963,4]
[322762114,1713258638542,-205.79685127,0.00031963,4]
[322762115,1713258638551,-164.63040782,0.00031963,4]
[322762116,1713258638561,-154.78330338,0.00031963,4]
[322762117,1713258638570,-279.03510671,0.00031963,4]
[322762118,1713258638579,-5849.08827499,0.00031964,4]
[322762119,1713258638590,-260.14418317,0.00031997,2]
[322762120,1713258638599,-186.35762658,0.00031999,10]
[322762121,1713258638608,-422.15034109,0.00031999,2]
[322762122,1713258638617,-553.05704658,0.00031999,2]
[322762123,1713258638626,-176.88781533,0.00031999,2]
[322762124,1713258638635,-58833.18012195,0.00032,5]
[322762125,1713258638643,-883738.57699201,0.00032,30]
[322762200,1713259128093,159.0,0.000252,10]
[322762203,1713259302215,-300.0,0.00034,120]
[322762204,1713259302236,-500.0,0.00034,120]
[322762205,1713259302257,-500.0,0.00034,120]
[322762206,1713259302278,-500.0,0.00034,120]
[322762207,1713259302299,-500.0,0.00034,120]
[322762208,1713259302320,-500.0,0.00034,120]
[322762209,1713259302341,-500.0,0.00034,120]
[322762210,1713259302365,-500.0,0.00034,120]
[322762211,1713259302386,-500.0,0.00034,120]
[322762212,1713259302406,-500.0,0.00034,120]
[322762213,1713259302427,-200.0,0.00034,120]
[322762225,1713259648150,-178.898683,0.00027397,2]
[322762226,1713259648175,-230.62017646,0.00027397,2]
[322762227,1713259700246,-500.0,0.000339,120]
[322762228,1713259700268,-500.0,0.000339,120]
[322762229,1713259700290,-500.0,0.000339,120]
[322762230,1713259700311,-500.0,0.000339,120]
[322762231,1713259700332,-300.0,0.000339,120]
[322762232,1713259700354,-500.0,0.00034,120]
[322762233,1713259700377,-500.0,0.00034,120]
[322762234,1713259700397,-500.0,0.00034,120]
[322762235,1713259700418,-500.0,0.00034,120]
[322762236,1713259700439,-500.0,0.00034,120]
[322762237,1713259700460,-500.0,0.00034,120]
[322762238,1713259700480,-500.0,0.00034,120]
[322762239,1713259700500,-500.0,0.00034,120]
[322762240,1713259700521,-500.0,0.00034,120]
[322762241,1713259700541,-500.0,0.00034,120]
[322762242,1713259700565,-400.0,0.00034,120]
[322762243,1713259757099,-30.52067754,0.00027397,2]
[322762244,1713259757125,-32303.13974243,0.00028178,7]
[322762245,1713259757145,-783.75792358,0.00028965,2]
[322762246,1713259757168,-166.666666,0.00028971,2]
[322762247,1713259757188,-8000.0,0.00028993,2]
[322762248,1713259757209,-300.0,0.00028993,2]
[322762249,1713259757229,-855.0,0.00028994,2]
[322762250,1713259757249,-208.62520155,0.00028994,2]
[322762251,1713259757269,-470.50724351,0.00028994,2]
[322762252,1713259757288,-631.09752721,0.00028994,2]
[322762253,1713259757307,-1663.42959747,0.00028994,2]
[322762254,1713259757327,-1117.77609825,0.00028994,2]
[322762255,1713259802895,1192.99413052,0.000339,120]
[322762256,1713259831239,167.517852,0.00027397,2]
[322762314,1713259842466,-300.0,0.00028993,2]
[322762315,1713259842477,-806.97562148,0.00028993,2]
[322762316,1713259842490,-394.37627338,0.00028993,2]
[322762344,1713259878446,197.049013,0.00030382,120]
[322762352,1713260088106,-100.0,0.00034,120]
[322762353,1713260088128,-500.0,0.00034,120]
[322762354,1713260088149,-500.0,0.00034,120]
[322762355,1713260088172,-500.0,0.00034,120]
[322762356,1713260088192,-500.0,0.00034,120]
[322762357,1713260088214,-500.0,0.00034,120]
[322762358,1713260088236,-500.0,0.00034,120]
[322762359,1713260088257,-500.0,0.00034,120]
[322762360,1713260088277,-500.0,0.00034,120]
[322762361,1713260088298,-500.0,0.00034,120]
[322762362,1713260088318,-500.0,0.00034,120]
[322762363,1713260088339,-500.0,0.00034,120]
[322762364,1713260088360,-500.0,0.00034,120]
[322762365,1713260088380,-500.0,0.00034,120]
[322762366,1713260088401,-500.0,0.00034,120]
[322762367,1713260088423,-348.64,0.00034,120]
[322762368,1713260088444,-500.0,0.00034,120]
[322762369,1713260088464,-500.0,0.00034,120]
[322762370,1713260088484,-500.0,0.00034,120]
[322762371,1713260088504,-500.0,0.00034,120]
[322762372,1713260088525,-500.0,0.00034,120]
[322762373,1713260088547,-500.0,0.00034,120]
[322762374,1713260088568,-500.0,0.00034,120]
[322762375,1713260088588,-389.39,0.00034,120]
[322762376,1713260088609,-500.0,0.00034,120]
[322762377,1713260088630,-414.16,0.00034,120]
[322762378,1713260088651,-500.0,0.00034,120]
[322762379,1713260088673,-500.0,0.00034,120]
[322762380,1713260088693,-500.0,0.00034,120]
[322762381,1713260088714,-500.0,0.00034,120]
[322762382,1713260088734,-500.0,0.00034,120]
[322762383,1713260088755,-500.0,0.00034,120]
[322762384,1713260088776,-500.0,0.00034,120]
[322762385,1713260088796,-500.0,0.00034,120]
[322762386,1713260088817,-500.0,0.00034,120]
[322762387,1713260088838,-500.0,0.00034,120]
[322762388,1713260088891,-780.64709582,0.00035616,120]
[322762389,1713260088928,-1440.0,0.00035616,120]
[322762390,1713260088984,-200.0,0.00035616,120]
[322762391,1713260089022,-129.37323518,0.00035616,120]
[322762392,1713260089048,-70.62676482,0.00036666,120]
[322762393,1713260089090,-710.020331,0.00036666,120]
[322762394,1713260089112,-1440.0,0.00037,120]
[322762395,1713260089141,-200.0,0.00037905,120]
[322762396,1713260089162,-200.0,0.00037912,120]
[322762397,1713260089215,-200.0,0.00038969,120]
[322762398,1713260089240,-200.0,0.00039717,120]
[322762399,1713260089261,-199.90254197,0.0004,120]
[322762400,1713260089282,-4027.21970021,0.0004,120]
[322762403,1713260126395,200.0,0.00035616,120]
[322762404,1713260126419,200.0,0.00035616,120]
[322762415,1713260560603,-695.4140959,0.00035616,120]
[322762416,1713260560648,-200.0,0.00035616,120]
[322762417,1713260560726,-303.98123234,0.00035616,120]
[322762418,1713260560858,-313.11991976,0.00035616,120]
[322762419,1713260560926,-25947.57178525,0.0004,120]
[322762420,1713260561011,-103.42874855,0.0004,120]
[322762421,1713260561033,-209.69117121,0.0004,120]
[322762422,1713260561056,-200.0,0.00040988,120]
[322762423,1713260561078,-545.4140959,0.00041,120]
[322762424,1713260561099,-150.0,0.00041,120]
[322762425,1713260561318,-443.58587653,0.00041553,120]
[322762426,1713260561410,-671.29659422,0.00041553,120]
[322762427,1713260625250,703.98123234,0.00035616,120]
[322762434,1713260838125,-213.751728,0.00027397,2]
[322762435,1713260838145,-53.12179462,0.00027397,2]
[322762439,1713260844160,-123.46212938,0.00027397,2]
[322762440,1713260844181,-108.53551931,0.000289,4]
[322762441,1713260963096,-755.28547886,0.000289,2]
[322762442,1713260963117,-300.0,0.00028955,2]
[322762443,1713260963137,-8000.0,0.00028955,2]
[322762444,1713260963156,-31260.08043228,0.00028956,2]
[322762445,1713260963176,-442.6157212,0.00028962,2]
[322762446,1713260963196,-5000.0,0.00029,2]
[322762447,1713260963216,-1457.89836766,0.0003,9]
[322762481,1713261032767,-64676.99809207,0.0003,9]
[322762482,1713261032778,-1014.77895432,0.0003,4]
[322762483,1713261032788,-164.972198,0.00030171,2]
[322762484,1713261032797,-197.049013,0.00030332,2]
[322762485,1713261032807,-153.0,0.000308,2]
[322762486,1713261032816,-157.1408082,0.000308,2]
[322762487,1713261032826,-159.3512213,0.000308,2]
[322762488,1713261032836,-153.0,0.000309,2]
[322762489,1713261032846,-153.0,0.000309,2]
[322762490,1713261032855,-153.0,0.000309,2]
[322762491,1713261032865,-3968.49367717,0.00030987,2]
[322762492,1713261032875,-400.0,0.00030999,2]
[322762493,1713261032885,-10629.16568609,0.00031,5]
[322762494,1713261032895,-153.0,0.00031233,2]
[322762495,1713261032904,-153.0,0.00031233,2]
[322762496,1713261032914,-161.92429212,0.00031679,3]
[322762497,1713261032924,-153.0,0.00031699,2]
[322762498,1713261032939,-153.0,0.00031699,2]
[322762499,1713261032949,-306.0,0.00031699,2]
[322762500,1713261032959,-153.0,0.00031699,2]
[322762501,1713261032968,-153.0,0.00031699,2]
[322762502,1713261032978,-264.05985318,0.00031889,4]
[322762503,1713261032987,-154.75239617,0.0003189,10]
[322762504,1713261032996,-2000.0,0.0003189,2]
[322762505,1713261033006,-164.21793047,0.000319,2]
[322762506,1713261033016,-2760.91969119,0.000319,2]
[322762507,1713261033026,-8000.0,0.00031921,4]
[322762508,1713261033036,-42000.10806641,0.00031922,4]
[322762509,1713261033045,-183.17255747,0.00031922,4]
[322762510,1713261033055,-20641.84868956,0.00031923,2]
[322762511,1713261033064,-5312.64,0.0003199,2]
[322762512,1713261033073,-191.77792018,0.0003199,2]
[322762513,1713261033085,-14598.53448292,0.0003199,2]
[322762514,1713261033095,-9859.388549,0.00031996,2]
[322762515,1713261033104,-155.04549281,0.00031998,2]
[322762516,1713261033113,-500.0,0.00031998,4]
[322762517,1713261033122,-527.87182472,0.00031999,4]
[322762518,1713261033132,-180.92157475,0.00031999,2]
[322762519,1713261033143,-237.02444853,0.00031999,2]
[322762520,1713261033152,-29416.59006097,0.00032,5]
[322762521,1713261033161,-3613.43797359,0.00032,30]
[322762523,1713261038505,-161.92429212,0.00031679,2]
[322762524,1713261038516,-774.84313601,0.00032,30]
[322762576,1713261041258,-3865.363186,0.00032,30]
[322762577,1713261041269,-1292.28,0.00032,30]
[322762600,1713261043710,-6099.42958972,0.00032,30]
[322762616,1713261120015,-451.68458566,0.00035616,120]
[322762617,1713261120163,-443.58587653,0.00041553,120]
[322762618,1713261120280,-712.07994147,0.00041553,120]
[322762619,1713261120303,-443.58587653,0.00042,120]
[322762620,1713261120458,-2045.334182,0.0004218,120]
[322762621,1713261120561,-1155.665818,0.0004218,120]
[322762622,1713261120583,-58288.41666947,0.00042188,120]
[322762625,1713261202910,577.832909,0.00035616,120]
[322762729,1713261753008,126.14832334,0.00035616,120]
[322762730,1713261753029,303.98123234,0.00035616,120]
[322762739,1713262032095,-154.75239617,0.00027396,2]
[322762740,1713262032118,-162.291806,0.00027397,2]
[322762741,1713262032140,-17.81658657,0.00027397,2]
[322762742,1713262049107,-161.08209643,0.00027397,2]
[322762743,1713262049127,-106.92025488,0.0003,4]
[322762787,1713262164121,-154.75239617,0.00029999,2]
[322762788,1713262164143,-381.20218555,0.0003,4]
[322762789,1713262164166,-106559.76546156,0.0003,30]
[322763062,1713262242776,-454.69002566,0.000279,2]
[322763135,1713262246962,-114.64426884,0.000279,2]
[322763136,1713262246972,-674.0701734,0.00029998,2]
[322763143,1713262416260,-325.842292,0.00035616,120]
[322763144,1713262416366,-325.842292,0.00041553,120]
[322763145,1713262416388,-41385.74103853,0.00042188,120]
[322763146,1713262416696,-325.842292,0.00042188,120]
[322763147,1713262416721,-516.40437106,0.000424,120]
[322763148,1713262416747,-7683.71920841,0.00045,120]
[322763149,1713262417109,-842.24666306,0.00045,120]
[322763150,1713262417134,-12248.13394754,0.0004698,120]
[322763172,1713262707096,162.921146,0.00035616,120]
[322763173,1713262707301,37.078854,0.00041553,120]
[322763174,1713262707322,125.842292,0.00041553,120]
[322763175,1713262709686,390.56207906,0.000419,120]
[322763235,1713262926962,303.98123234,0.00035,120]
[322763236,1713262926982,2550.020331,0.00035,120]
[322763237,1713262927003,1512.515248,0.00035,120]
[322763238,1713262927024,451.68458566,0.00035,120]
[322763239,1713262927045,325.842292,0.00035,120]
[322763240,1713262964068,909.95685648,0.00033,120]
[322763272,1713263235143,-248.083811,0.00027397,2]
[322763273,1713263235162,-167.517852,0.00027397,2]
[322763274,1713263235186,-385.01277856,0.00029865,4]
[322763275,1713263235208,-300.0,0.00029963,2]
[322763276,1713263235230,-31260.08043228,0.00029964,2]
[322763277,1713263235250,-8000.0,0.00029965,2]
[322763278,1713263235269,-154.73694719,0.00029976,2]
[322763279,1713263235286,-251.84876367,0.00029993,2]
[322763280,1713263235305,-236.25199096,0.00029997,2]
[322763281,1713263235325,-294.32497516,0.00029998,2]
[322763282,1713263235342,-154.75239617,0.0003,4]
[322763283,1713263235361,-154.73694719,0.0003,2]
[322763284,1713263235379,-10000.0,0.00031,4]
[322763285,1713263235397,-10629.16568609,0.00031,5]
[322763286,1713263235417,-10000.0,0.000315,4]
[322763287,1713263235436,-161.92429213,0.00031679,2]
[322763288,1713263235454,-2000.0,0.000318,2]
[322763289,1713263235474,-351.6573209,0.00031887,4]
[322763290,1713263235493,-154.7215013,0.0003189,10]
[322763291,1713263235513,-18238.69255159,0.000319,2]
[322763402,1713263431824,-212.966069,0.00027397,2]
[322763404,1713263431834,-429.55619633,0.000298,2]
[322763406,1713263431843,-2328.75032104,0.00030998,4]
[322763427,1713263432089,-198.03852954,0.00030998,4]
[322763451,1713263437893,-39473.31921583,0.00030998,4]
[322763452,1713263437903,-400.0,0.00030999,2]
[322763453,1713263437913,-500.0,0.00031,120]
[322763454,1713263437922,-500.0,0.00031,120]
[322763455,1713263437931,-563.14,0.00031,120]
[322763456,1713263437941,-10629.16568609,0.00031,5]
[322763457,1713263437956,-155.23842131,0.00031356,4]
[322763458,1713263437965,-2000.0,0.000318,2]
[322763459,1713263437975,-154.7215013,0.0003189,10]
[322763460,1713263437984,-1139.09140995,0.000319,2]
[322763461,1713263437995,-462.81142996,0.000319,2]
[322763462,1713263438004,-119306.77216556,0.000319,30]
[322763463,1713263438016,-42657.61823909,0.000319,30]
[322763464,1713263438025,-2208.735753,0.000319,2]
[322763465,1713263438035,-522.7857071,0.00031999,4]
[322763466,1713263438044,-500.0,0.00031999,2]
[322763467,1713263438054,-288.541891,0.00031999,2]
[322763468,1713263438063,-500.0,0.00031999,2]
[322763469,1713263438072,-500.0,0.00031999,2]
[322763470,1713263438082,-500.0,0.00031999,2]
[322763471,1713263438092,-500.0,0.00031999,2]
[322763472,1713263438103,-499.99999999,0.00031999,2]
[322763473,1713263438113,-14708.29503049,0.00032,5]
[322763474,1713263438123,-53614.02337933,0.00032,30]
[322763475,1713263438136,-969.88714952,0.00032,30]
[322763476,1713263438169,-330.87341258,0.00032,30]
[322763587,1713263442725,-8000.0,0.00030997,4]
[322763591,1713263442735,-89037.41098,0.00032,30]
[322763594,1713263442745,-24160.80360856,0.00032,30]
[322763670,1713263443399,-10408.43453931,0.00032,30]
[322763732,1713263448785,-500.0,0.00031899,2]
[322763733,1713263448794,-19814.93627,0.00032,30]
[322763734,1713263448848,-199998.06852462,0.00032,30]
[322763735,1713263448857,-191.14907978,0.00032,4]
[322763736,1713263448866,-20973.29442644,0.00032,2]
[322763737,1713263448875,-310.39539305,0.00032,2]
[322763738,1713263448885,-150.0,0.00032,2]
[322763739,1713263448895,-1000.0,0.00032,8]
[322763741,1713263448905,-462.81142994,0.0003203,2]
[322763742,1713263448914,-586.0,0.000321,2]
[322763744,1713263448922,-462.81142994,0.0003216,2]
[322763746,1713263448932,-462.81142994,0.0003229,2]
[322763748,1713263448942,-462.81142994,0.0003242,2]
[322763750,1713263448951,-313.231442,0.000325,2]
[322763752,1713263448964,-313.231442,0.000325,2]
[322763755,1713263448974,-151.0,0.000325,2]
[322763757,1713263448984,-205.180132,0.000325,2]
[322763758,1713263448993,-3000.0,0.000325,2]
[322763759,1713263449003,-151.0,0.000325,2]
[322763760,1713263449012,-179.654722,0.000325,2]
[322763761,1713263449021,-454.894058,0.000325,2]
[322763762,1713263449031,-151.0,0.000325,2]
[322763763,1713263449040,-454.894058,0.000325,2]
[322763764,1713263449049,-454.546724,0.000325,2]
[322763765,1713263449058,-454.546724,0.000325,2]
[322763766,1713263449067,-167.161388,0.000325,2]
[322763767,1713263449077,-167.161388,0.000325,2]
[322763768,1713263449086,-223.503295,0.000325,2]
[322763769,1713263449095,-247.965676,0.000325,2]
[322763770,1713263449104,-247.965676,0.000325,2]
[322763771,1713263449114,-288.828754,0.000325,2]
[322763772,1713263449123,-288.828754,0.000325,2]
[322763773,1713263449133,-151.0,0.000325,2]
[322763774,1713263449142,-151.0,0.000325,2]
[322763775,1713263449283,-2163.64906,0.000325,2]
[322763776,1713263449295,-2163.64906,0.000325,2]
[322763777,1713263449306,-151.0,0.000325,2]
[322763778,1713263449319,-347.291299,0.000325,2]
[322763779,1713263449329,-347.291299,0.000325,2]
[322763780,1713263449339,-151.0,0.000325,2]
[322763781,1713263449348,-151.0,0.000325,2]
[322763782,1713263449358,-151.0,0.000325,2]
[322763783,1713263449368,-177.972315,0.000325,2]
[322763784,1713263449378,-177.972315,0.000325,2]
[322763785,1713263449389,-3000.0,0.0003251,2]
[322763786,1713263449398,-3000.0,0.0003252,2]
[322763787,1713263449408,-3000.0,0.0003253,2]
[322763788,1713263449419,-3150.0,0.0003254,2]
[322763789,1713263449428,-971.757663,0.00032631,2]
[322763790,1713263449438,-971.757663,0.00032631,2]
[322763791,1713263449448,-151.0,0.00032631,2]
[322763792,1713263449465,-151.0,0.00032631,2]
[322763793,1713263449475,-151.0,0.00032631,2]
[322763794,1713263449485,-1129.457452,0.00032631,2]
[322763795,1713263449494,-1129.457452,0.00032631,2]
[322763796,1713263449503,-314.409192,0.00032631,2]
[322763797,1713263449513,-314.409192,0.00032631,2]
[322763798,1713263449522,-153.0,0.00032631,2]
[322763799,1713263449531,-153.0,0.00032631,2]
[322763800,1713263449541,-153.0,0.00032631,2]
[322763801,1713263449550,-153.0,0.00032631,2]
[322763802,1713263449559,-153.0,0.00032631,2]
[322763803,1713263449568,-153.0,0.00032631,2]
[322763804,1713263449577,-153.0,0.00032631,2]
[322763805,1713263449586,-153.0,0.00032631,2]
[322763806,1713263449595,-153.0,0.00032631,2]
[322763807,1713263449604,-153.0,0.00032631,2]
[322763808,1713263449613,-153.0,0.00032631,2]
[322763809,1713263449623,-153.0,0.00032631,2]
[322763810,1713263449632,-153.0,0.00032631,2]
[322763811,1713263449641,-153.0,0.00032631,2]
[322763812,1713263449650,-153.0,0.00032631,2]
[322763813,1713263449659,-151.0,0.000328,2]
[322763814,1713263449669,-347.291299,0.000328,2]
[322763815,1713263449678,-347.291299,0.000328,2]
[322763816,1713263449687,-151.0,0.000328,2]
[322763817,1713263449696,-151.0,0.000328,2]
[322763818,1713263449711,-151.0,0.00032876,2]
[322763819,1713263449721,-151.0,0.00032876,2]
[322763820,1713263449730,-167.161388,0.00032876,2]
[322763821,1713263449739,-167.161388,0.00032876,2]
[322763822,1713263449748,-247.965676,0.00032876,2]
[322763823,1713263449759,-247.965676,0.00032876,2]
[322763824,1713263449768,-288.828754,0.00032876,2]
[322763825,1713263449777,-288.828754,0.00032876,2]
[322763826,1713263449787,-151.0,0.00032876,2]
[322763827,1713263449796,-151.0,0.00032876,2]
[322763828,1713263449806,-2163.64906,0.00032876,2]
[322763829,1713263449815,-2163.64906,0.00032876,2]
[322763830,1713263449824,-151.0,0.00032876,2]
[322763831,1713263449833,-177.972315,0.00032876,2]
[322763832,1713263449842,-177.972315,0.00032876,2]
[322763833,1713263449851,-1429.010337,0.00032877,2]
[322763834,1713263449860,-1429.010337,0.00032877,2]
[322763835,1713263449869,-1429.010337,0.00032877,2]
[322763836,1713263449879,-1429.010337,0.00032877,2]
[322763837,1713263449888,-227.643736,0.00032877,2]
[322763838,1713263449897,-155.793107,0.00032877,2]
[322763839,1713263449907,-151.0,0.00032877,2]
[322763840,1713263449916,-151.0,0.00032877,2]
[322763841,1713263449925,-151.0,0.00032877,2]
[322763842,1713263449934,-151.0,0.00032877,2]
[322763843,1713263449943,-151.0,0.00032877,2]
[322763844,1713263449958,-357.809911,0.000329,2]
[322763845,1713263449969,-357.809911,0.000329,2]
[322763846,1713263449978,-313.231442,0.000329,2]
[322763847,1713263449988,-313.231442,0.000329,2]
[322763848,1713263449998,-151.0,0.000329,2]
[322763849,1713263450008,-454.894058,0.000329,2]
[322763850,1713263450019,-454.894058,0.000329,2]
[322763851,1713263450029,-454.546724,0.000329,2]
[322763852,1713263450039,-454.546724,0.000329,2]
[322763853,1713263450049,-151.0,0.00032999,2]
[322763854,1713263450058,-151.0,0.00032999,2]
[322763855,1713263450067,-167.161388,0.00032999,2]
[322763856,1713263450077,-167.161388,0.00032999,2]
[322763857,1713263450087,-167.161388,0.00032999,2]
[322763858,1713263450097,-167.161388,0.00032999,2]
[322763859,1713263450106,-247.965676,0.00032999,2]
[322763860,1713263450116,-247.965676,0.00032999,2]
[322763861,1713263450125,-247.965676,0.00032999,2]
[322763862,1713263450134,-247.965676,0.00032999,2]
[322763863,1713263450144,-288.828754,0.00032999,2]
[322763864,1713263450155,-288.828754,0.00032999,2]
[322763865,1713263450164,-288.828754,0.00032999,2]
[322763866,1713263450174,-288.828754,0.00032999,2]
[322763867,1713263450183,-151.0,0.00032999,2]
[322763868,1713263450192,-151.0,0.00032999,2]
[322763869,1713263450201,-151.0,0.00032999,2]
[322763870,1713263450218,-151.0,0.00032999,2]
[322763871,1713263450227,-2163.64906,0.00032999,2]
[322763872,1713263450236,-2163.64906,0.00032999,2]
[322763873,1713263450245,-2163.64906,0.00032999,2]
[322763874,1713263450254,-2163.64906,0.00032999,2]
[322763875,1713263450264,-151.0,0.00032999,2]
[322763876,1713263450275,-151.0,0.00032999,2]
[322763877,1713263450284,-347.291299,0.00032999,2]
[322763878,1713263450293,-347.291299,0.00032999,2]
[322763879,1713263450302,-347.291299,0.00032999,2]
[322763880,1713263450327,-347.291299,0.00032999,2]
[322763881,1713263450357,-161.013888,0.00032999,2]
[322763882,1713263450366,-151.0,0.00032999,2]
[322763883,1713263450376,-151.0,0.00032999,2]
[322763884,1713263450385,-158.075864,0.00032999,2]
[322763885,1713263450395,-177.972315,0.00032999,2]
[322763886,1713263450404,-177.972315,0.00032999,2]
[322763887,1713263450412,-177.972315,0.00032999,2]
[322763888,1713263450421,-177.972315,0.00032999,2]
[322763889,1713263450430,-971.757663,0.00032999,2]
[322763890,1713263450440,-971.757663,0.00032999,2]
[322763891,1713263450449,-151.0,0.00032999,2]
[322763892,1713263450464,-151.0,0.00032999,2]
[322763893,1713263450474,-151.0,0.00032999,2]
[322763894,1713263450484,-1129.457452,0.00032999,2]
[322763895,1713263450494,-1129.457452,0.00032999,2]
[322763896,1713263450503,-314.409192,0.00032999,2]
[322763897,1713263450512,-314.409192,0.00032999,2]
[322763898,1713263450521,-163.0,0.00033,10]
[322763899,1713263450531,-1200.0,0.00033,4]
[322763900,1713263450541,-151.0,0.00033,2]
[322763901,1713263450551,-151.0,0.00033,2]
[322763902,1713263450560,-151.0,0.00033,2]
[322763903,1713263450569,-167.161388,0.00033,2]
[322763904,1713263450579,-167.161388,0.00033,2]
[322763905,1713263450588,-247.965676,0.00033,2]
[322763906,1713263450597,-247.965676,0.00033,2]
[322763907,1713263450606,-288.828754,0.00033,2]
[322763908,1713263450616,-288.828754,0.00033,2]
[322763909,1713263450625,-151.0,0.00033,2]
[322763910,1713263450634,-151.0,0.00033,2]
[322763911,1713263450644,-2163.64906,0.00033,2]
[322763912,1713263450653,-2163.64906,0.00033,2]
[322763913,1713263450663,-151.0,0.00033,2]
[322763914,1713263450674,-150.0,0.00033,2]
[322763915,1713263450684,-347.291299,0.00033,2]
[322763916,1713263450694,-347.291299,0.00033,2]
[322763917,1713263450705,-151.0,0.00033,2]
[322763918,1713263450717,-177.972315,0.00033,2]
[322763919,1713263450727,-177.972315,0.00033,2]
[322763920,1713263450736,-248.083811,0.00033165,2]
[322763921,1713263450747,-212.966069,0.00033165,2]
[322763922,1713263450758,-620.95652697,0.00033266,2]
[322763923,1713263450769,-156.59766546,0.0003332,2]
[322763924,1713263450779,-151.0,0.00033332,2]
[322763925,1713263450790,-151.0,0.00033332,2]
[322763926,1713263450801,-151.0,0.00033332,2]
[322763927,1713263450812,-151.0,0.00033332,2]
[322763928,1713263450825,-357.809911,0.00033332,2]
[322763929,1713263450835,-357.809911,0.00033332,2]
[322763930,1713263450845,-357.809911,0.00033332,2]
[322763931,1713263450855,-357.809911,0.00033332,2]
[322763932,1713263450865,-151.0,0.00033332,2]
[322763933,1713263450875,-151.0,0.00033332,2]
[322763934,1713263450886,-151.0,0.00033332,2]
[322763935,1713263450897,-151.0,0.00033332,2]
[322763936,1713263450907,-313.231442,0.00033332,2]
[322763937,1713263450916,-313.231442,0.00033332,2]
[322763938,1713263450926,-313.231442,0.00033332,2]
[322763939,1713263450935,-313.231442,0.00033332,2]
[322763940,1713263450945,-254.530166,0.00033332,2]